[Event "Titled Tuesday Blitz January 17 Early 2023"]
[White "Tanenbaum, Zachary"]
[Black "Castellanos Gomez, Alejandro"]
[WhiteFideId "2060850"]
[BlackFideId "22284141"]
[WhiteElo "2261"]
[BlackElo "2253"]
[Result "1-0"]
[Round "06"]
[TimeControl "180+2"]
[Date "2023.01.17"]
[WhiteClock "0:00:11"]
[BlackClock "0:00:03"]

1. e4 {[%clk 0:03:00]}  e6 {[%clk 0:03:00]} 2. d4 {[%clk 0:03:00]}  d5 {[%clk 0:03:00]} 3. Nc3 {[%clk 0:03:01]}  Nf6 {[%clk 0:02:56]} 4. Bg5 {[%clk 0:03:00]}  Be7 {[%clk 0:02:55]} 5. e5 {[%clk 0:02:59]}  Nfd7 {[%clk 0:02:55]} 6. h4 {[%clk 0:03:00]}  h6 {[%clk 0:02:56]} 7. Bxe7 {[%clk 0:02:59]}  Qxe7 {[%clk 0:02:57]} 8. Qg4 {[%clk 0:02:58]}  O-O {[%clk 0:02:57]} 9. Nf3 {[%clk 0:02:55]}  c5 {[%clk 0:02:58]} 10. dxc5 {[%clk 0:02:54]}  Nc6 {[%clk 0:02:58]} 11. Qf4 {[%clk 0:02:51]}  Nxc5 {[%clk 0:02:57]} 12. O-O-O {[%clk 0:02:50]}  a6 {[%clk 0:02:57]} 13. Bd3 {[%clk 0:02:48]}  b5 {[%clk 0:02:56]} 14. Kb1 {[%clk 0:02:47]}  b4 {[%clk 0:02:52]} 15. Ne2 {[%clk 0:02:46]}  a5 {[%clk 0:02:53]} 16. Ned4 {[%clk 0:02:45]}  Bb7 {[%clk 0:02:53]} 17. Nxc6 {[%clk 0:02:41]}  Bxc6 {[%clk 0:02:53]} 18. Nd4 {[%clk 0:02:42]}  Bb7 {[%clk 0:02:50]} 19. Rh3 {[%clk 0:02:37]}  Kh8 {[%clk 0:02:45]} 20. Rg3 {[%clk 0:02:31]}  a4 {[%clk 0:02:32]} 21. h5 {[%clk 0:01:51]}  b3 {[%clk 0:02:23]} 22. cxb3 {[%clk 0:01:51]}  axb3 {[%clk 0:02:24]} 23. axb3 {[%clk 0:01:45]}  f5 {[%clk 0:01:22]} 24. b4 {[%clk 0:01:22]}  Nxd3 {[%clk 0:01:12]} 25. Rgxd3 {[%clk 0:01:21]}  Rfc8 {[%clk 0:01:06]} 26. Rc1 {[%clk 0:01:17]}  Qxb4 {[%clk 0:00:56]} 27. Nxe6 {[%clk 0:01:08]}  Rxc1+ {[%clk 0:00:54]} 28. Qxc1 {[%clk 0:01:04]}  Qe4 {[%clk 0:00:54]} 29. Nc5 {[%clk 0:01:03]}  Qb4 {[%clk 0:00:39]} 30. Rb3 {[%clk 0:01:02]}  Qa5 {[%clk 0:00:39]} 31. Rxb7 {[%clk 0:00:30]}  Qa2+ {[%clk 0:00:32]} 32. Kc2 {[%clk 0:00:30]}  Qc4+ {[%clk 0:00:33]} 33. Kd2 {[%clk 0:00:24]}  Qd4+ {[%clk 0:00:32]} 34. Nd3 {[%clk 0:00:24]}  Qg4 {[%clk 0:00:20]} 35. Rc7 {[%clk 0:00:16]}  Kh7 {[%clk 0:00:19]} 36. Qc6 {[%clk 0:00:13]}  Qg5+ {[%clk 0:00:14]} 37. Kc2 {[%clk 0:00:11]}  Qxh5 {[%clk 0:00:03]} 38. Qxa8 {[%clk 0:00:11]}  Qe2+ {[%clk 0:00:03]} 39. Kc3 {[%clk 0:00:11]}  d4+ {[%clk 0:00:02]} 40. Kxd4 {[%clk 0:00:10]}  Qe4+ {[%clk 0:00:03]} 41. Qxe4 {[%clk 0:00:10]}  fxe4 {[%clk 0:00:03]} 42. Kxe4 {[%clk 0:00:11]} 1-0


[Site "https://www.chess.com"]

[Event "Titled Tuesday Blitz January 17 Early 2023"]
[White "Wagh Suyog"]
[Black "Albertini, Luca"]
[WhiteFideId "25071688"]
[BlackFideId "847038"]
[WhiteElo "2313"]
[BlackElo "2084"]
[Result "0-1"]
[Round "06"]
[TimeControl "180+2"]
[Date "2023.01.17"]
[WhiteClock "0:00:55"]
[BlackClock "0:00:18"]

1. Nf3 {[%clk 0:02:49]}  d5 {[%clk 0:02:57]} 2. e3 {[%clk 0:02:43]}  Nf6 {[%clk 0:02:54]} 3. c4 {[%clk 0:02:39]}  c6 {[%clk 0:02:53]} 4. b3 {[%clk 0:02:36]}  g6 {[%clk 0:02:51]} 5. Bb2 {[%clk 0:02:36]}  Bg7 {[%clk 0:02:51]} 6. d4 {[%clk 0:02:36]}  O-O {[%clk 0:02:51]} 7. Bd3 {[%clk 0:02:35]}  Bg4 {[%clk 0:02:45]} 8. Nbd2 {[%clk 0:02:34]}  Bxf3 {[%clk 0:02:45]} 9. Nxf3 {[%clk 0:02:31]}  Nbd7 {[%clk 0:02:45]} 10. O-O {[%clk 0:02:31]}  Re8 {[%clk 0:02:40]} 11. Qc2 {[%clk 0:02:31]}  Nh5 {[%clk 0:02:22]} 12. Rad1 {[%clk 0:02:24]}  Qb8 {[%clk 0:02:08]} 13. h3 {[%clk 0:02:10]}  e5 {[%clk 0:02:02]} 14. cxd5 {[%clk 0:02:09]}  cxd5 {[%clk 0:02:00]} 15. Bb5 {[%clk 0:02:09]}  Rc8 {[%clk 0:01:16]} 16. Qe2 {[%clk 0:02:08]}  e4 {[%clk 0:01:08]} 17. Bxd7 {[%clk 0:02:05]}  exf3 {[%clk 0:01:07]} 18. Qxf3 {[%clk 0:02:05]}  Rc2 {[%clk 0:01:07]} 19. Rb1 {[%clk 0:01:58]}  Qd6 {[%clk 0:01:04]} 20. Bb5 {[%clk 0:01:58]}  Nf6 {[%clk 0:00:54]} 21. Bd3 {[%clk 0:01:57]}  Rc6 {[%clk 0:00:52]} 22. g3 {[%clk 0:01:57]}  Rac8 {[%clk 0:00:51]} 23. Kg2 {[%clk 0:01:57]}  a6 {[%clk 0:00:51]} 24. Rfd1 {[%clk 0:01:51]}  Qb4 {[%clk 0:00:51]} 25. g4 {[%clk 0:01:47]}  Qa5 {[%clk 0:00:44]} 26. a3 {[%clk 0:01:43]}  Qb6 {[%clk 0:00:44]} 27. b4 {[%clk 0:01:37]}  Re8 {[%clk 0:00:42]} 28. Rdc1 {[%clk 0:01:35]}  Ne4 {[%clk 0:00:42]} 29. Qd1 {[%clk 0:01:32]}  Rf6 {[%clk 0:00:31]} 30. Rc2 {[%clk 0:01:31]}  h5 {[%clk 0:00:25]} 31. Rbc1 {[%clk 0:01:26]}  hxg4 {[%clk 0:00:24]} 32. hxg4 {[%clk 0:01:27]}  Qd6 {[%clk 0:00:19]} 33. Qh1 {[%clk 0:01:25]}  Rxf2+ {[%clk 0:00:18]} 34. Kg1 {[%clk 0:00:54]}  Qg3+ {[%clk 0:00:19]} 35. Qg2 {[%clk 0:00:55]}  Qxg2# {[%clk 0:00:18]} 0-1


[Site "https://www.chess.com"]

[Event "Titled Tuesday Blitz January 17 Early 2023"]
[White "Sonnenschein, Philipp"]
[Black "Niekras, Dawid"]
[WhiteFideId "16250877"]
[BlackFideId "1160451"]
[WhiteElo "2224"]
[BlackElo "2315"]
[Result "0-1"]
[Round "06"]
[TimeControl "180+2"]
[Date "2023.01.17"]
[WhiteClock "0:00:01"]
[BlackClock "0:00:07"]

1. e4 {[%clk 0:03:00]}  c5 {[%clk 0:03:00]} 2. Nf3 {[%clk 0:03:00]}  g6 {[%clk 0:02:59]} 3. c3 {[%clk 0:03:00]}  Bg7 {[%clk 0:02:59]} 4. d4 {[%clk 0:03:00]}  cxd4 {[%clk 0:03:00]} 5. cxd4 {[%clk 0:03:01]}  d5 {[%clk 0:03:00]} 6. e5 {[%clk 0:03:01]}  Bg4 {[%clk 0:03:01]} 7. Bb5+ {[%clk 0:03:01]}  Nd7 {[%clk 0:03:02]} 8. O-O {[%clk 0:02:58]}  a6 {[%clk 0:03:02]} 9. Bd3 {[%clk 0:02:55]}  e6 {[%clk 0:03:00]} 10. Nbd2 {[%clk 0:02:54]}  Ne7 {[%clk 0:02:59]} 11. h3 {[%clk 0:02:54]}  Bxf3 {[%clk 0:02:59]} 12. Nxf3 {[%clk 0:02:55]}  O-O {[%clk 0:02:59]} 13. Bg5 {[%clk 0:02:52]}  f6 {[%clk 0:02:39]} 14. exf6 {[%clk 0:02:50]}  Bxf6 {[%clk 0:02:40]} 15. Bxf6 {[%clk 0:02:48]}  Rxf6 {[%clk 0:02:41]} 16. Re1 {[%clk 0:02:39]}  Nc6 {[%clk 0:02:32]} 17. Bc2 {[%clk 0:02:23]}  Rc8 {[%clk 0:02:03]} 18. Rc1 {[%clk 0:02:15]}  Qb6 {[%clk 0:01:53]} 19. Bb3 {[%clk 0:02:04]}  Kg7 {[%clk 0:01:42]} 20. Qd3 {[%clk 0:01:36]}  Rcf8 {[%clk 0:01:34]} 21. Re3 {[%clk 0:01:32]}  Qb4 {[%clk 0:00:46]} 22. a3 {[%clk 0:01:22]}  Qd6 {[%clk 0:00:46]} 23. Rce1 {[%clk 0:01:18]}  b5 {[%clk 0:00:30]} 24. R1e2 {[%clk 0:01:09]}  Na5 {[%clk 0:00:26]} 25. Ng5 {[%clk 0:00:58]}  Re8 {[%clk 0:00:20]} 26. Ba2 {[%clk 0:00:38]}  Nc4 {[%clk 0:00:20]} 27. Rf3 {[%clk 0:00:27]}  Ref8 {[%clk 0:00:09]} 28. Rxf6 {[%clk 0:00:25]}  Rxf6 {[%clk 0:00:10]} 29. Bb1 {[%clk 0:00:20]}  e5 {[%clk 0:00:07]} 30. dxe5 {[%clk 0:00:19]}  Ndxe5 {[%clk 0:00:08]} 31. Qd4 {[%clk 0:00:17]}  Nc6 {[%clk 0:00:08]} 32. Qh4 {[%clk 0:00:15]}  h6 {[%clk 0:00:06]} 33. Nf3 {[%clk 0:00:15]}  Qf4 {[%clk 0:00:06]} 34. Qxf4 {[%clk 0:00:12]}  Rxf4 {[%clk 0:00:07]} 35. Bd3 {[%clk 0:00:09]}  Rf6 {[%clk 0:00:04]} 36. Kf1 {[%clk 0:00:06]}  Rd6 {[%clk 0:00:04]} 37. Ke1 {[%clk 0:00:06]}  Kf6 {[%clk 0:00:04]} 38. Kd1 {[%clk 0:00:06]}  g5 {[%clk 0:00:05]} 39. Kc2 {[%clk 0:00:07]}  N4e5 {[%clk 0:00:05]} 40. Nxe5 {[%clk 0:00:07]}  Nxe5 {[%clk 0:00:06]} 41. Rd2 {[%clk 0:00:03]}  Rc6+ {[%clk 0:00:06]} 42. Kd1 {[%clk 0:00:03]}  Ng6 {[%clk 0:00:06]} 43. Be2 {[%clk 0:00:03]}  Nf4 {[%clk 0:00:06]} 44. Bf3 {[%clk 0:00:03]}  Ke5 {[%clk 0:00:07]} 45. Rd3 {[%clk 0:00:01]}  Nxd3 {[%clk 0:00:07]} 46. Kd2 {[%clk 0:00:01]}  Nxf2 {[%clk 0:00:07]} 0-1


[Site "https://www.chess.com"]

[Event "Titled Tuesday Blitz January 17 Early 2023"]
[White "Royal, Shreyas"]
[Black "Dinu, Dumitru-Daniel"]
[WhiteFideId "448869"]
[BlackFideId "1208403"]
[WhiteElo "2438"]
[BlackElo "2203"]
[Result "1-0"]
[Round "06"]
[TimeControl "180+2"]
[Date "2023.01.17"]
[WhiteClock "0:01:51"]
[BlackClock "0:00:13"]

1. e4 {[%clk 0:03:00]}  c5 {[%clk 0:02:59]} 2. Nf3 {[%clk 0:03:00]}  e6 {[%clk 0:02:59]} 3. Nc3 {[%clk 0:02:58]}  Nc6 {[%clk 0:02:58]} 4. d4 {[%clk 0:02:59]}  cxd4 {[%clk 0:02:58]} 5. Nxd4 {[%clk 0:03:00]}  Nf6 {[%clk 0:02:58]} 6. g3 {[%clk 0:02:59]}  d5 {[%clk 0:02:56]} 7. exd5 {[%clk 0:02:55]}  Nxd5 {[%clk 0:02:55]} 8. Bg2 {[%clk 0:02:54]}  Nxc3 {[%clk 0:02:55]} 9. bxc3 {[%clk 0:02:55]}  Bd7 {[%clk 0:02:55]} 10. O-O {[%clk 0:02:54]}  Be7 {[%clk 0:02:56]} 11. Rb1 {[%clk 0:02:54]}  Rb8 {[%clk 0:02:49]} 12. Rxb7 {[%clk 0:02:53]}  Rxb7 {[%clk 0:02:43]} 13. Nxc6 {[%clk 0:02:53]}  Qc7 {[%clk 0:02:04]} 14. Bf4 {[%clk 0:02:47]}  Qxc6 {[%clk 0:01:55]} 15. Bxc6 {[%clk 0:02:46]}  Bxc6 {[%clk 0:01:56]} 16. Be5 {[%clk 0:02:31]}  f6 {[%clk 0:01:51]} 17. Bd4 {[%clk 0:02:24]}  O-O {[%clk 0:01:46]} 18. Qg4 {[%clk 0:02:24]}  Bd5 {[%clk 0:01:36]} 19. Re1 {[%clk 0:02:22]}  Rfb8 {[%clk 0:01:32]} 20. f3 {[%clk 0:02:07]}  Rb1 {[%clk 0:01:15]} 21. Kf2 {[%clk 0:02:07]}  Rxe1 {[%clk 0:01:06]} 22. Kxe1 {[%clk 0:02:07]}  Rb2 {[%clk 0:00:49]} 23. c4 {[%clk 0:02:04]}  Rb1+ {[%clk 0:00:49]} 24. Kd2 {[%clk 0:02:04]}  Bxc4 {[%clk 0:00:45]} 25. Bxf6 {[%clk 0:02:03]}  Bxf6 {[%clk 0:00:41]} 26. Qxc4 {[%clk 0:02:03]}  Kf7 {[%clk 0:00:29]} 27. Qc7+ {[%clk 0:02:02]}  Kg6 {[%clk 0:00:28]} 28. Qxa7 {[%clk 0:02:03]}  Rh1 {[%clk 0:00:19]} 29. Qf2 {[%clk 0:02:00]}  Ra1 {[%clk 0:00:19]} 30. Qe2 {[%clk 0:01:55]}  Kf7 {[%clk 0:00:17]} 31. Qc4 {[%clk 0:01:53]}  Rh1 {[%clk 0:00:17]} 32. h4 {[%clk 0:01:52]}  Rg1 {[%clk 0:00:13]} 33. a4 {[%clk 0:01:51]}  Rxg3 {[%clk 0:00:13]} 34. Qc7+ {[%clk 0:01:51]} 1-0


[Site "https://www.chess.com"]

[Event "Titled Tuesday Blitz January 17 Early 2023"]
[White "Devaev, Alexander"]
[Black "Ordekalog"]
[WhiteFideId "4169395"]
[WhiteElo "2325"]
[BlackElo "2578"]
[Result "0-1"]
[Round "06"]
[TimeControl "180+2"]
[Date "2023.01.17"]
[WhiteClock "0:00:05"]
[BlackClock "0:00:09"]

1. d4 {[%clk 0:03:00]}  d5 {[%clk 0:02:58]} 2. c4 {[%clk 0:03:00]}  e6 {[%clk 0:02:58]} 3. Nc3 {[%clk 0:03:00]}  c5 {[%clk 0:02:57]} 4. cxd5 {[%clk 0:02:59]}  exd5 {[%clk 0:02:57]} 5. Nf3 {[%clk 0:03:00]}  Nc6 {[%clk 0:02:57]} 6. e3 {[%clk 0:03:00]}  Nf6 {[%clk 0:02:57]} 7. Bb5 {[%clk 0:03:00]}  Bd6 {[%clk 0:02:55]} 8. dxc5 {[%clk 0:03:00]}  Bxc5 {[%clk 0:02:56]} 9. O-O {[%clk 0:03:01]}  O-O {[%clk 0:02:56]} 10. b3 {[%clk 0:03:01]}  Bg4 {[%clk 0:02:56]} 11. Bxc6 {[%clk 0:03:01]}  bxc6 {[%clk 0:02:56]} 12. Ne2 {[%clk 0:03:02]}  Ne4 {[%clk 0:02:51]} 13. Bb2 {[%clk 0:02:48]}  Re8 {[%clk 0:02:49]} 14. Qd3 {[%clk 0:02:46]}  Bxf3 {[%clk 0:02:42]} 15. gxf3 {[%clk 0:02:46]}  Ng5 {[%clk 0:02:42]} 16. Qf5 {[%clk 0:02:41]}  g6 {[%clk 0:02:22]} 17. Qg4 {[%clk 0:02:33]}  h5 {[%clk 0:02:19]} 18. Qg2 {[%clk 0:02:32]}  Ne6 {[%clk 0:02:14]} 19. Rfd1 {[%clk 0:02:19]}  Rc8 {[%clk 0:02:12]} 20. Ng3 {[%clk 0:02:07]}  Kh7 {[%clk 0:02:07]} 21. f4 {[%clk 0:01:45]}  Bf8 {[%clk 0:01:51]} 22. f5 {[%clk 0:01:41]}  Ng7 {[%clk 0:01:38]} 23. f6 {[%clk 0:01:22]}  Ne6 {[%clk 0:01:35]} 24. h4 {[%clk 0:01:10]}  Bh6 {[%clk 0:01:33]} 25. Kh1 {[%clk 0:01:07]}  Qa5 {[%clk 0:01:09]} 26. Qh3 {[%clk 0:00:48]}  Qb4 {[%clk 0:00:53]} 27. Bd4 {[%clk 0:00:24]}  c5 {[%clk 0:00:46]} 28. Bb2 {[%clk 0:00:17]}  d4 {[%clk 0:00:38]} 29. Rg1 {[%clk 0:00:07]}  dxe3 {[%clk 0:00:26]} 30. fxe3 {[%clk 0:00:07]}  Rcd8 {[%clk 0:00:20]} 31. Rg2 {[%clk 0:00:05]}  Qb7 {[%clk 0:00:18]} 32. Kh2 {[%clk 0:00:05]}  Qc7 {[%clk 0:00:16]} 33. Kh1 {[%clk 0:00:05]}  Qc6 {[%clk 0:00:15]} 34. Kh2 {[%clk 0:00:05]}  Rd3 {[%clk 0:00:15]} 35. Nxh5 {[%clk 0:00:05]}  Rxe3 {[%clk 0:00:12]} 36. Qg4 {[%clk 0:00:05]}  Qd6+ {[%clk 0:00:10]} 37. Kh1 {[%clk 0:00:06]}  Qd5 {[%clk 0:00:10]} 38. Rd1 {[%clk 0:00:04]}  Qxh5 {[%clk 0:00:09]} 39. Qxh5 {[%clk 0:00:04]}  gxh5 {[%clk 0:00:10]} 40. Rd7 {[%clk 0:00:04]}  Re1+ {[%clk 0:00:09]} 41. Kh2 {[%clk 0:00:05]}  Bf4+ {[%clk 0:00:09]} 42. Kh3 {[%clk 0:00:05]}  Rh1+ {[%clk 0:00:09]} 0-1


[Site "https://www.chess.com"]

[Event "Titled Tuesday Blitz January 17 Early 2023"]
[White "Melian, Juan Sebastian"]
[Black "Dwilewicz, Katarzyna"]
[WhiteFideId "3706575"]
[BlackFideId "1148486"]
[WhiteElo "2293"]
[BlackElo "2115"]
[Result "1-0"]
[Round "06"]
[TimeControl "180+2"]
[Date "2023.01.17"]
[WhiteClock "0:01:20"]
[BlackClock "0:00:17"]

1. Nf3 {[%clk 0:03:00]}  c5 {[%clk 0:02:59]} 2. e3 {[%clk 0:03:00]}  Nc6 {[%clk 0:02:59]} 3. d4 {[%clk 0:03:01]}  cxd4 {[%clk 0:02:59]} 4. exd4 {[%clk 0:03:02]}  d5 {[%clk 0:02:56]} 5. c3 {[%clk 0:02:57]}  Nf6 {[%clk 0:02:53]} 6. h3 {[%clk 0:02:54]}  g6 {[%clk 0:02:53]} 7. Bd3 {[%clk 0:02:54]}  Bg7 {[%clk 0:02:53]} 8. O-O {[%clk 0:02:55]}  O-O {[%clk 0:02:54]} 9. Re1 {[%clk 0:02:53]}  Re8 {[%clk 0:02:54]} 10. Bf4 {[%clk 0:02:51]}  Nh5 {[%clk 0:02:50]} 11. Bh2 {[%clk 0:02:51]}  b6 {[%clk 0:02:44]} 12. Nbd2 {[%clk 0:02:49]}  Bb7 {[%clk 0:02:45]} 13. Ne5 {[%clk 0:02:46]}  Nf6 {[%clk 0:02:30]} 14. f4 {[%clk 0:02:39]}  Rc8 {[%clk 0:02:28]} 15. f5 {[%clk 0:02:34]}  Nd7 {[%clk 0:02:21]} 16. fxg6 {[%clk 0:02:21]}  hxg6 {[%clk 0:02:21]} 17. Ndf3 {[%clk 0:01:49]}  Ndxe5 {[%clk 0:02:13]} 18. Nxe5 {[%clk 0:01:50]}  Nxe5 {[%clk 0:02:09]} 19. Bxe5 {[%clk 0:01:51]}  Bxe5 {[%clk 0:02:09]} 20. Rxe5 {[%clk 0:01:52]}  Kg7 {[%clk 0:02:09]} 21. Qg4 {[%clk 0:01:50]}  Qd6 {[%clk 0:02:07]} 22. Rae1 {[%clk 0:01:47]}  e6 {[%clk 0:01:15]} 23. h4 {[%clk 0:01:46]}  Rh8 {[%clk 0:01:15]} 24. h5 {[%clk 0:01:46]}  Rh6 {[%clk 0:00:59]} 25. hxg6 {[%clk 0:01:40]}  Rch8 {[%clk 0:00:59]} 26. gxf7+ {[%clk 0:01:40]}  Kf8 {[%clk 0:00:59]} 27. Rxe6 {[%clk 0:01:25]}  Qh2+ {[%clk 0:00:28]} 28. Kf2 {[%clk 0:01:23]}  Rxe6 {[%clk 0:00:18]} 29. Rxe6 {[%clk 0:01:24]}  Qh4+ {[%clk 0:00:16]} 30. Qxh4 {[%clk 0:01:22]}  Rxh4 {[%clk 0:00:17]} 31. Bg6 {[%clk 0:01:20]} 1-0


[Site "https://www.chess.com"]

[Event "Titled Tuesday Blitz January 17 Early 2023"]
[White "Buksa, Nataliya"]
[Black "Silva, Caio Henrique Angelico"]
[WhiteFideId "14123622"]
[BlackFideId "22777210"]
[WhiteElo "2406"]
[BlackElo "2129"]
[Result "1-0"]
[Round "06"]
[TimeControl "180+2"]
[Date "2023.01.17"]
[WhiteClock "0:01:21"]
[BlackClock "0:01:11"]

1. d4 {[%clk 0:03:00]}  Nf6 {[%clk 0:03:00]} 2. Nc3 {[%clk 0:03:00]}  d5 {[%clk 0:02:59]} 3. Bf4 {[%clk 0:03:01]}  e6 {[%clk 0:02:59]} 4. Nb5 {[%clk 0:03:00]}  Na6 {[%clk 0:02:59]} 5. e3 {[%clk 0:03:00]}  c6 {[%clk 0:02:59]} 6. Nc3 {[%clk 0:03:00]}  Bd6 {[%clk 0:02:58]} 7. Nf3 {[%clk 0:03:00]}  Nc7 {[%clk 0:02:54]} 8. Bd3 {[%clk 0:03:00]}  b6 {[%clk 0:02:50]} 9. O-O {[%clk 0:03:00]}  Ba6 {[%clk 0:02:50]} 10. Ne5 {[%clk 0:02:59]}  Bxd3 {[%clk 0:02:44]} 11. Nxc6 {[%clk 0:02:31]}  Qd7 {[%clk 0:02:43]} 12. Ne5 {[%clk 0:02:31]}  Bxe5 {[%clk 0:02:43]} 13. dxe5 {[%clk 0:02:31]}  Bxf1 {[%clk 0:02:43]} 14. exf6 {[%clk 0:02:27]}  Ba6 {[%clk 0:02:40]} 15. fxg7 {[%clk 0:02:27]}  Rg8 {[%clk 0:02:40]} 16. Qd4 {[%clk 0:02:23]}  Nb5 {[%clk 0:02:35]} 17. Nxb5 {[%clk 0:02:13]}  Bxb5 {[%clk 0:02:36]} 18. a4 {[%clk 0:02:13]}  Bc6 {[%clk 0:02:34]} 19. Be5 {[%clk 0:02:13]}  O-O-O {[%clk 0:02:32]} 20. a5 {[%clk 0:02:11]}  b5 {[%clk 0:02:29]} 21. a6 {[%clk 0:02:11]}  f5 {[%clk 0:02:15]} 22. Ra3 {[%clk 0:02:10]}  Rde8 {[%clk 0:02:05]} 23. Rc3 {[%clk 0:02:09]}  Re7 {[%clk 0:02:03]} 24. Qb4 {[%clk 0:01:37]}  Rexg7 {[%clk 0:02:00]} 25. Qxb5 {[%clk 0:01:29]}  Rxg2+ {[%clk 0:01:58]} 26. Kf1 {[%clk 0:01:29]}  Rg1+ {[%clk 0:01:44]} 27. Ke2 {[%clk 0:01:29]}  Kd8 {[%clk 0:01:23]} 28. Rxc6 {[%clk 0:01:29]}  Rc1 {[%clk 0:01:11]} 29. Bf6+ {[%clk 0:01:21]}  Ke8 {[%clk 0:01:11]} 30. Rc8+ {[%clk 0:01:21]} 1-0


[Site "https://www.chess.com"]

[Event "Titled Tuesday Blitz January 17 Early 2023"]
[White "Liu, Casper"]
[Black "Pein, Jonathan"]
[WhiteFideId "1454153"]
[BlackFideId "417092"]
[WhiteElo "2278"]
[BlackElo "2265"]
[Result "0-1"]
[Round "06"]
[TimeControl "180+2"]
[Date "2023.01.17"]
[WhiteClock "0:01:15"]
[BlackClock "0:00:12"]

1. d4 {[%clk 0:02:27]}  Nf6 {[%clk 0:02:56]} 2. c4 {[%clk 0:02:27]}  e5 {[%clk 0:02:56]} 3. Nc3 {[%clk 0:02:28]}  exd4 {[%clk 0:02:56]} 4. Qxd4 {[%clk 0:02:29]}  Nc6 {[%clk 0:02:56]} 5. Qh4 {[%clk 0:02:30]}  Be7 {[%clk 0:02:56]} 6. Bg5 {[%clk 0:02:30]}  h6 {[%clk 0:02:56]} 7. O-O-O {[%clk 0:02:30]}  d6 {[%clk 0:02:53]} 8. e4 {[%clk 0:02:30]}  Ne5 {[%clk 0:02:35]} 9. f4 {[%clk 0:02:27]}  Ng6 {[%clk 0:02:34]} 10. Qe1 {[%clk 0:02:21]}  hxg5 {[%clk 0:02:34]} 11. fxg5 {[%clk 0:02:22]}  Ng4 {[%clk 0:02:35]} 12. Nf3 {[%clk 0:02:14]}  Bxg5+ {[%clk 0:02:32]} 13. Kb1 {[%clk 0:02:15]}  Bf6 {[%clk 0:02:30]} 14. Nd5 {[%clk 0:02:15]}  N4e5 {[%clk 0:02:21]} 15. h4 {[%clk 0:02:11]}  Bg4 {[%clk 0:02:17]} 16. Be2 {[%clk 0:02:10]}  Bxf3 {[%clk 0:02:12]} 17. gxf3 {[%clk 0:02:11]}  c6 {[%clk 0:02:09]} 18. h5 {[%clk 0:02:10]}  cxd5 {[%clk 0:01:41]} 19. hxg6 {[%clk 0:02:11]}  Nxg6 {[%clk 0:01:40]} 20. Rxh8+ {[%clk 0:02:06]}  Nxh8 {[%clk 0:01:41]} 21. cxd5 {[%clk 0:02:07]}  Qb6 {[%clk 0:01:38]} 22. b3 {[%clk 0:02:05]}  Ng6 {[%clk 0:01:36]} 23. Qg3 {[%clk 0:01:55]}  Be5 {[%clk 0:01:19]} 24. Qh3 {[%clk 0:01:55]}  a6 {[%clk 0:01:11]} 25. f4 {[%clk 0:01:46]}  Bxf4 {[%clk 0:01:08]} 26. Bg4 {[%clk 0:01:47]}  Be5 {[%clk 0:01:04]} 27. Bd7+ {[%clk 0:01:46]}  Ke7 {[%clk 0:01:04]} 28. Ba4 {[%clk 0:01:45]}  Rd8 {[%clk 0:00:59]} 29. Rf1 {[%clk 0:01:45]}  Bf6 {[%clk 0:00:50]} 30. e5 {[%clk 0:01:31]}  Nxe5 {[%clk 0:00:47]} 31. Rc1 {[%clk 0:01:25]}  g6 {[%clk 0:00:23]} 32. Rf1 {[%clk 0:01:15]}  Qd4 {[%clk 0:00:20]} 33. Rc1 {[%clk 0:01:13]}  b5 {[%clk 0:00:17]} 34. Rc7+ {[%clk 0:01:13]}  Rd7 {[%clk 0:00:16]} 35. Rc1 {[%clk 0:01:07]}  bxa4 {[%clk 0:00:15]} 36. Qf1 {[%clk 0:01:06]}  Qd3+ {[%clk 0:00:15]} 37. Qxd3 {[%clk 0:01:05]}  Nxd3 {[%clk 0:00:16]} 38. Rh1 {[%clk 0:01:06]}  axb3 {[%clk 0:00:16]} 39. a4 {[%clk 0:01:06]}  Nf4 {[%clk 0:00:17]} 40. Re1+ {[%clk 0:01:06]}  Be5 {[%clk 0:00:17]} 41. Rc1 {[%clk 0:01:07]}  Nxd5 {[%clk 0:00:17]} 42. Rc8 {[%clk 0:01:08]}  Rc7 {[%clk 0:00:17]} 43. Rh8 {[%clk 0:01:09]}  Bxh8 {[%clk 0:00:16]} 44. a5 {[%clk 0:01:08]}  Rc1+ {[%clk 0:00:16]} 45. Kxc1 {[%clk 0:01:07]}  b2+ {[%clk 0:00:17]} 46. Kb1 {[%clk 0:01:08]}  Nc3+ {[%clk 0:00:17]} 47. Kc2 {[%clk 0:01:08]}  b1=Q+ {[%clk 0:00:16]} 48. Kd2 {[%clk 0:01:09]}  Qd1+ {[%clk 0:00:15]} 49. Ke3 {[%clk 0:01:10]}  Qd4+ {[%clk 0:00:15]} 50. Kf3 {[%clk 0:01:10]}  Nd5 {[%clk 0:00:13]} 51. Kg3 {[%clk 0:01:11]}  Kf6 {[%clk 0:00:12]} 52. Kh3 {[%clk 0:01:12]}  Kf5 {[%clk 0:00:13]} 53. Kh2 {[%clk 0:01:12]}  Qc3 {[%clk 0:00:12]} 54. Kh1 {[%clk 0:01:13]}  Ne7 {[%clk 0:00:12]} 55. Kh2 {[%clk 0:01:14]}  Qb2+ {[%clk 0:00:13]} 56. Kg3 {[%clk 0:01:14]}  Qc3+ {[%clk 0:00:13]} 57. Kh4 {[%clk 0:01:15]}  Bf6# {[%clk 0:00:12]} 0-1


[Site "https://www.chess.com"]

[Event "Titled Tuesday Blitz January 17 Early 2023"]
[White "Ruiz Aguilar, Pablo Alexander"]
[Black "Goltseva, Ekaterina"]
[WhiteFideId "4401352"]
[BlackFideId "24173770"]
[WhiteElo "2161"]
[BlackElo "2283"]
[Result "0-1"]
[Round "06"]
[TimeControl "180+2"]
[Date "2023.01.17"]
[WhiteClock "0:00:15"]
[BlackClock "0:00:18"]

1. e4 {[%clk 0:03:00]}  c5 {[%clk 0:02:59]} 2. Nf3 {[%clk 0:03:00]}  e6 {[%clk 0:02:57]} 3. d4 {[%clk 0:03:00]}  cxd4 {[%clk 0:02:57]} 4. Nxd4 {[%clk 0:03:00]}  Nf6 {[%clk 0:02:58]} 5. Nc3 {[%clk 0:02:59]}  Nc6 {[%clk 0:02:58]} 6. Ndb5 {[%clk 0:02:58]}  Bc5 {[%clk 0:02:59]} 7. a4 {[%clk 0:02:51]}  O-O {[%clk 0:02:55]} 8. Bd3 {[%clk 0:02:49]}  a6 {[%clk 0:02:51]} 9. Na3 {[%clk 0:02:49]}  d5 {[%clk 0:02:52]} 10. exd5 {[%clk 0:02:48]}  exd5 {[%clk 0:02:52]} 11. O-O {[%clk 0:02:47]}  Bg4 {[%clk 0:02:49]} 12. Be2 {[%clk 0:02:43]}  Bf5 {[%clk 0:02:23]} 13. Bg5 {[%clk 0:02:42]}  d4 {[%clk 0:02:20]} 14. Ncb1 {[%clk 0:02:29]}  Nb4 {[%clk 0:02:07]} 15. Nd2 {[%clk 0:02:16]}  Nxc2 {[%clk 0:01:56]} 16. Nxc2 {[%clk 0:02:11]}  d3 {[%clk 0:01:56]} 17. Ne3 {[%clk 0:01:27]}  dxe2 {[%clk 0:01:50]} 18. Qxe2 {[%clk 0:01:27]}  Bd3 {[%clk 0:01:51]} 19. Qf3 {[%clk 0:01:27]}  Bxe3 {[%clk 0:01:28]} 20. fxe3 {[%clk 0:01:24]}  Bxf1 {[%clk 0:01:28]} 21. Nxf1 {[%clk 0:01:24]}  Qd5 {[%clk 0:01:25]} 22. Bxf6 {[%clk 0:01:20]}  Qxf3 {[%clk 0:01:25]} 23. gxf3 {[%clk 0:01:20]}  gxf6 {[%clk 0:01:26]} 24. Ng3 {[%clk 0:01:20]}  Rfd8 {[%clk 0:01:17]} 25. e4 {[%clk 0:01:18]}  Rac8 {[%clk 0:01:13]} 26. Nf5 {[%clk 0:01:11]}  Kf8 {[%clk 0:01:13]} 27. Ne3 {[%clk 0:00:54]}  Rd2 {[%clk 0:01:05]} 28. b4 {[%clk 0:00:53]}  Rc3 {[%clk 0:01:02]} 29. Nd5 {[%clk 0:00:47]}  Rxf3 {[%clk 0:00:54]} 30. Rc1 {[%clk 0:00:47]}  Rff2 {[%clk 0:00:47]} 31. Rc8+ {[%clk 0:00:42]}  Kg7 {[%clk 0:00:46]} 32. Ne3 {[%clk 0:00:42]}  f5 {[%clk 0:00:36]} 33. Nxf5+ {[%clk 0:00:38]}  Kf6 {[%clk 0:00:36]} 34. Ne3 {[%clk 0:00:31]}  Rfe2 {[%clk 0:00:34]} 35. Ng4+ {[%clk 0:00:29]}  Ke6 {[%clk 0:00:29]} 36. Re8+ {[%clk 0:00:26]}  Kd7 {[%clk 0:00:27]} 37. Nf6+ {[%clk 0:00:26]}  Kc6 {[%clk 0:00:22]} 38. Rc8+ {[%clk 0:00:23]}  Kb6 {[%clk 0:00:20]} 39. Kf1 {[%clk 0:00:20]}  Rf2+ {[%clk 0:00:20]} 40. Ke1 {[%clk 0:00:20]}  Rde2+ {[%clk 0:00:17]} 41. Kd1 {[%clk 0:00:20]}  Ra2 {[%clk 0:00:17]} 42. Nd5+ {[%clk 0:00:18]}  Ka7 {[%clk 0:00:17]} 43. Ke1 {[%clk 0:00:15]}  Rxh2 {[%clk 0:00:18]} 0-1


[Site "https://www.chess.com"]